{"text_format":"1","workbook":"xlsx","n_sheets":2,"sheets":["給与の入力","stubs_template"],"not_rendered":{"charts":0,"images":0,"macros":1,"external_links":0,"defined_names":7,"comments":0,"pivot_tables":0},"unopened":[],"bounds":{"document_bytes":16777216,"sheet_cells":100000,"rows_first":2000,"rows_last":500,"rows_between":2000,"halvings":0,"cell_chars":16384,"cell_head_chars":4096},"cells_cut":0,"cells_raw":0,"read":"whole","date_system":"1900"}

{"sheet":"給与の入力","index":0,"n_rows":13,"n_cols":24,"rows_kept":13,"cut":false,"hidden":false,"merged":[]}
[null,"給与計算ツール",null,null,null,null,null,null,null,null,"期間の終了:",41372,null,"会社名:","ヒロコーポレーション"]
[]
[null,"ID","従業員氏名","正規の勤務時間","休暇時間","病欠時間","残業時間","残業時間給","支払総額","税金と控除","その他の\n控除","税引き後支払額"," ","時給","税務上の身分","扶養\n家族","住民税","所得税","雇用\n保険","健康保険","合計源泉徴収率","保険料控除","その他の一般控除","合計一般\n控除"]
[null,1001,"岩村 浩之",50,5,1,null,null,{"$f":"SUM(Employees[[#This Row],[正規の勤務時間]:[病欠時間]])*Employees[[#This Row],[時給]]+Employees[[#This Row],[残業時間]]*Employees[[#This Row],[残業時間給]]","v":56000},{"$f":"Employees[[#This Row],[支払総額]]*Employees[[#This Row],[合計源泉徴収率]] + Employees[[#This Row],[合計一般\n控除]]","v":27308.000000000004},2000,{"$f":"Employees[[#This Row],[支払総額]]-Employees[[#This Row],[税金と控除]]-Employees[[#This Row],[その他の\n控除]]","v":26691.999999999996},null,1000,1,4,2.3E-2,0.28000000000000003,6.3E-2,1.4500000000000001E-2,{"$f":"SUM(Employees[[#This Row],[住民税]:[健康保険]])","v":0.38050000000000006},2000,4000,{"$f":"SUM(Employees[[#This Row],[保険料控除]:[その他の一般控除]])","v":6000}]
[null,1002,"小田 勝也",40,null,null,null,null,{"$f":"SUM(Employees[[#This Row],[正規の勤務時間]:[病欠時間]])*Employees[[#This Row],[時給]]+Employees[[#This Row],[残業時間]]*Employees[[#This Row],[残業時間給]]","v":32000},{"$f":"Employees[[#This Row],[支払総額]]*Employees[[#This Row],[合計源泉徴収率]] + Employees[[#This Row],[合計一般\n控除]]","v":13176.000000000002},null,{"$f":"Employees[[#This Row],[支払総額]]-Employees[[#This Row],[税金と控除]]-Employees[[#This Row],[その他の\n控除]]","v":18824},null,800,1,1,2.3E-2,0.28000000000000003,6.3E-2,1.4500000000000001E-2,{"$f":"SUM(Employees[[#This Row],[住民税]:[健康保険]])","v":0.38050000000000006},0,1000,{"$f":"SUM(Employees[[#This Row],[保険料控除]:[その他の一般控除]])","v":1000}]
[null,1003,"若本 喜一",35,3,null,null,null,{"$f":"SUM(Employees[[#This Row],[正規の勤務時間]:[病欠時間]])*Employees[[#This Row],[時給]]+Employees[[#This Row],[残業時間]]*Employees[[#This Row],[残業時間給]]","v":53200},{"$f":"Employees[[#This Row],[支払総額]]*Employees[[#This Row],[合計源泉徴収率]] + Employees[[#This Row],[合計一般\n控除]]","v":24042.600000000002},null,{"$f":"Employees[[#This Row],[支払総額]]-Employees[[#This Row],[税金と控除]]-Employees[[#This Row],[その他の\n控除]]","v":29157.399999999998},null,1400,1,3,2.3E-2,0.28000000000000003,6.3E-2,1.4500000000000001E-2,{"$f":"SUM(Employees[[#This Row],[住民税]:[健康保険]])","v":0.38050000000000006},1800,2000,{"$f":"SUM(Employees[[#This Row],[保険料控除]:[その他の一般控除]])","v":3800}]
[null,1008,"古井 広宣",50,5,1,null,null,{"$f":"SUM(Employees[[#This Row],[正規の勤務時間]:[病欠時間]])*Employees[[#This Row],[時給]]+Employees[[#This Row],[残業時間]]*Employees[[#This Row],[残業時間給]]","v":112000},{"$f":"Employees[[#This Row],[支払総額]]*Employees[[#This Row],[合計源泉徴収率]] + Employees[[#This Row],[合計一般\n控除]]","v":44116.000000000007},null,{"$f":"Employees[[#This Row],[支払総額]]-Employees[[#This Row],[税金と控除]]-Employees[[#This Row],[その他の\n控除]]","v":67884},null,2000,1,0,2.3E-2,0.28000000000000003,6.3E-2,1.4500000000000001E-2,{"$f":"SUM(Employees[[#This Row],[住民税]:[健康保険]])","v":0.38050000000000006},1500,null,{"$f":"SUM(Employees[[#This Row],[保険料控除]:[その他の一般控除]])","v":1500}]
[null,1011,"中村 美香",40,null,null,2,1500,{"$f":"SUM(Employees[[#This Row],[正規の勤務時間]:[病欠時間]])*Employees[[#This Row],[時給]]+Employees[[#This Row],[残業時間]]*Employees[[#This Row],[残業時間給]]","v":43000},{"$f":"Employees[[#This Row],[支払総額]]*Employees[[#This Row],[合計源泉徴収率]] + Employees[[#This Row],[合計一般\n控除]]","v":22361.5},null,{"$f":"Employees[[#This Row],[支払総額]]-Employees[[#This Row],[税金と控除]]-Employees[[#This Row],[その他の\n控除]]","v":20638.5},null,1000,1,0,2.3E-2,0.28000000000000003,6.3E-2,1.4500000000000001E-2,{"$f":"SUM(Employees[[#This Row],[住民税]:[健康保険]])","v":0.38050000000000006},2000,4000,{"$f":"SUM(Employees[[#This Row],[保険料控除]:[その他の一般控除]])","v":6000}]
[null,1012,"島中 和明",40,5,1,null,null,{"$f":"SUM(Employees[[#This Row],[正規の勤務時間]:[病欠時間]])*Employees[[#This Row],[時給]]+Employees[[#This Row],[残業時間]]*Employees[[#This Row],[残業時間給]]","v":55200},{"$f":"Employees[[#This Row],[支払総額]]*Employees[[#This Row],[合計源泉徴収率]] + Employees[[#This Row],[合計一般\n控除]]","v":27003.600000000002},null,{"$f":"Employees[[#This Row],[支払総額]]-Employees[[#This Row],[税金と控除]]-Employees[[#This Row],[その他の\n控除]]","v":28196.399999999998},null,1200,1,4,2.3E-2,0.28000000000000003,6.3E-2,1.4500000000000001E-2,{"$f":"SUM(Employees[[#This Row],[住民税]:[健康保険]])","v":0.38050000000000006},2000,4000,{"$f":"SUM(Employees[[#This Row],[保険料控除]:[その他の一般控除]])","v":6000}]
[null,1025,"池林 裕香",36,null,2,1,1800,{"$f":"SUM(Employees[[#This Row],[正規の勤務時間]:[病欠時間]])*Employees[[#This Row],[時給]]+Employees[[#This Row],[残業時間]]*Employees[[#This Row],[残業時間給]]","v":47400},{"$f":"Employees[[#This Row],[支払総額]]*Employees[[#This Row],[合計源泉徴収率]] + Employees[[#This Row],[合計一般\n控除]]","v":22535.700000000004},2500,{"$f":"Employees[[#This Row],[支払総額]]-Employees[[#This Row],[税金と控除]]-Employees[[#This Row],[その他の\n控除]]","v":22364.299999999996},null,1200,1,2,2.3E-2,0.28000000000000003,6.3E-2,1.4500000000000001E-2,{"$f":"SUM(Employees[[#This Row],[住民税]:[健康保険]])","v":0.38050000000000006},2500,2000,{"$f":"SUM(Employees[[#This Row],[保険料控除]:[その他の一般控除]])","v":4500}]
[null,1032,"河垣 加奈子",40,5,1,null,null,{"$f":"SUM(Employees[[#This Row],[正規の勤務時間]:[病欠時間]])*Employees[[#This Row],[時給]]+Employees[[#This Row],[残業時間]]*Employees[[#This Row],[残業時間給]]","v":46000},{"$f":"Employees[[#This Row],[支払総額]]*Employees[[#This Row],[合計源泉徴収率]] + Employees[[#This Row],[合計一般\n控除]]","v":17503.000000000004},5000,{"$f":"Employees[[#This Row],[支払総額]]-Employees[[#This Row],[税金と控除]]-Employees[[#This Row],[その他の\n控除]]","v":23496.999999999996},null,1000,1,3,2.3E-2,0.28000000000000003,6.3E-2,1.4500000000000001E-2,{"$f":"SUM(Employees[[#This Row],[住民税]:[健康保険]])","v":0.38050000000000006},null,null,{"$f":"SUM(Employees[[#This Row],[保険料控除]:[その他の一般控除]])","v":0}]
[null,1049,"阿部 信夫",40,1,null,null,null,{"$f":"SUM(Employees[[#This Row],[正規の勤務時間]:[病欠時間]])*Employees[[#This Row],[時給]]+Employees[[#This Row],[残業時間]]*Employees[[#This Row],[残業時間給]]","v":61500},{"$f":"Employees[[#This Row],[支払総額]]*Employees[[#This Row],[合計源泉徴収率]] + Employees[[#This Row],[合計一般\n控除]]","v":25900.750000000004},2300,{"$f":"Employees[[#This Row],[支払総額]]-Employees[[#This Row],[税金と控除]]-Employees[[#This Row],[その他の\n控除]]","v":33299.25},null,1500,1,2,2.3E-2,0.28000000000000003,6.3E-2,1.4500000000000001E-2,{"$f":"SUM(Employees[[#This Row],[住民税]:[健康保険]])","v":0.38050000000000006},2500,null,{"$f":"SUM(Employees[[#This Row],[保険料控除]:[その他の一般控除]])","v":2500}]
[null,"合計",{"$f":"SUBTOTAL(103,Employees[従業員氏名])","v":9},{"$f":"SUBTOTAL(109,Employees[正規の勤務時間])","v":371},{"$f":"SUBTOTAL(109,Employees[休暇時間])","v":24},{"$f":"SUBTOTAL(109,Employees[病欠時間])","v":6},{"$f":"SUBTOTAL(109,Employees[残業時間])","v":3},null,{"$f":"SUBTOTAL(109,Employees[支払総額])","v":506300},{"$f":"SUBTOTAL(109,Employees[税金と控除])","v":223947.15000000002},{"$f":"SUBTOTAL(109,Employees[その他の\n控除])","v":11800},{"$f":"SUBTOTAL(109,Employees[税引き後支払額])","v":270552.84999999998},null,null,null,null,null,null,null,null,null,{"$f":"SUBTOTAL(109,Employees[保険料控除])","v":14300},{"$f":"SUBTOTAL(109,Employees[その他の一般控除])","v":17000},{"$f":"SUBTOTAL(109,Employees[合計一般\n控除])","v":31300}]

{"sheet":"stubs_template","index":1,"n_rows":47,"n_cols":13,"rows_kept":47,"cut":false,"hidden":true,"merged":[[45,2,45,3],[32,2,32,3],[33,2,33,3],[20,2,20,3],[21,2,21,3],[2,3,2,4],[14,3,14,4],[26,3,26,4],[38,3,38,4],[44,2,44,3],[8,2,8,3],[9,2,9,3],[2,7,2,8],[14,7,14,8],[26,7,26,8],[38,7,38,8],[38,11,38,12],[26,11,26,12],[14,11,14,12],[2,11,2,12]]}
[]
[null,null,{"$f":"CompanyName","v":"ヒロコーポレーション"}]
[null,null,"期間",{"$f":"PeriodEnding","v":41372},null,null,"氏名",{"$f":"IFERROR(INDEX(Employees[従業員氏名],Stub),\"\")","v":"岩村 浩之"},null,null,"従業員 ID",{"$f":"IFERROR(INDEX(Employees[ID],Stub),\"\")","v":1001}]
[null,null,"税務上の身分",null,{"$f":"IFERROR(INDEX(Employees[税務上の身分],Stub),\"\")","v":1},null,"扶養家族",null,{"$f":"IFERROR(INDEX(Employees[扶養\n家族],Stub),\"\")","v":4},null,"就業時間",null,{"$f":"IFERROR(INDEX(Employees[正規の勤務時間],Stub),\"\")","v":50}]
[null,null,"時給",null,{"$f":"IFERROR(INDEX(Employees[時給],Stub),\"\")","v":1000},null,"残業時間給",null,{"$f":"IFERROR(INDEX(Employees[残業時間給],Stub),\"\")","v":0},null,"病欠時間",null,{"$f":"IFERROR(INDEX(Employees[病欠時間],Stub),\"\")","v":1}]
[null,null,"雇用保険",null,{"$f":"IFERROR(INDEX(Employees[雇用\n保険],Stub)  *  INDEX(Employees[支払総額],Stub),\"\")","v":3528},null,"所得税 ",null,{"$f":"IFERROR(INDEX(Employees[所得税],Stub)  *  INDEX(Employees[支払総額],Stub),\"\")","v":15680.000000000002},null,"休暇時間",null,{"$f":"IFERROR(INDEX(Employees[休暇時間],Stub),\"\")","v":5}]
[null,null,"健康保険 ",null,{"$f":"IFERROR(INDEX(Employees[健康保険],Stub)  *  INDEX(Employees[支払総額],Stub),\"\")","v":812},null,"住民税 ",null,{"$f":"IFERROR(INDEX(Employees[住民税],Stub)  *  INDEX(Employees[支払総額],Stub),\"\")","v":1288},null,"残業時間",null,{"$f":"IFERROR(INDEX(Employees[残業時間],Stub),\"\")","v":0}]
[null,null,"保険料控除",null,{"$f":"IFERROR(INDEX(Employees[保険料控除],Stub),\"\")","v":2000},null,"その他の一般控除",null,{"$f":"IFERROR(INDEX(Employees[その他の一般控除],Stub),\"\")","v":4000},null,"支払総額",null,{"$f":"IFERROR(INDEX(Employees[支払総額],Stub),\"\")","v":56000}]
[null,null,"税金と",null,{"$f":"IFERROR(INDEX(Employees[税金と控除],Stub),\"\")","v":27308.000000000004},null,"その他の控除",null,{"$f":"IFERROR(INDEX(Employees[その他の\n控除],Stub),\"\")","v":2000},null,"税金および控除の合計 ",null,{"$f":"IFERROR(INDEX(Employees[税金と控除],Stub)  +  INDEX(Employees[その他の\n控除],Stub),\"\")","v":29308.000000000004}]
[null,null,"一般控除の合計  "]
[null,null,null,null,null,null,null,null,null,null,"税引き後支払額",null,{"$f":"IFERROR(INDEX(Employees[税引き後支払額],Stub),\"\")","v":26691.999999999996}]
[]
[]
[null,null,{"$f":"CompanyName","v":"ヒロコーポレーション"}]
[null,null,"期間",{"$f":"PeriodEnding","v":41372},null,null,"氏名",{"$f":"IFERROR(INDEX(Employees[従業員氏名],Stub),\"\")","v":"小田 勝也"},null,null,"従業員 ID",{"$f":"IFERROR(INDEX(Employees[ID],Stub),\"\")","v":1002}]
[null,null,"税務上の身分",null,{"$f":"IFERROR(INDEX(Employees[税務上の身分],Stub),\"\")","v":1},null,"扶養家族",null,{"$f":"IFERROR(INDEX(Employees[扶養\n家族],Stub),\"\")","v":1},null,"就業時間",null,{"$f":"IFERROR(INDEX(Employees[正規の勤務時間],Stub),\"\")","v":40}]
[null,null,"時給",null,{"$f":"IFERROR(INDEX(Employees[時給],Stub),\"\")","v":800},null,"残業時間給",null,{"$f":"IFERROR(INDEX(Employees[残業時間給],Stub),\"\")","v":0},null,"病欠時間",null,{"$f":"IFERROR(INDEX(Employees[病欠時間],Stub),\"\")","v":0}]
[null,null,"雇用保険",null,{"$f":"IFERROR(INDEX(Employees[雇用\n保険],Stub)  *  INDEX(Employees[支払総額],Stub),\"\")","v":2016},null,"所得税 ",null,{"$f":"IFERROR(INDEX(Employees[所得税],Stub)  *  INDEX(Employees[支払総額],Stub),\"\")","v":8960},null,"休暇時間",null,{"$f":"IFERROR(INDEX(Employees[休暇時間],Stub),\"\")","v":0}]
[null,null,"健康保険 ",null,{"$f":"IFERROR(INDEX(Employees[健康保険],Stub)  *  INDEX(Employees[支払総額],Stub),\"\")","v":464},null,"住民税 ",null,{"$f":"IFERROR(INDEX(Employees[住民税],Stub)  *  INDEX(Employees[支払総額],Stub),\"\")","v":736},null,"残業時間",null,{"$f":"IFERROR(INDEX(Employees[残業時間],Stub),\"\")","v":0}]
[null,null,"保険料控除",null,{"$f":"IFERROR(INDEX(Employees[保険料控除],Stub),\"\")","v":0},null,"その他の一般控除",null,{"$f":"IFERROR(INDEX(Employees[その他の一般控除],Stub),\"\")","v":1000},null,"支払総額",null,{"$f":"IFERROR(INDEX(Employees[支払総額],Stub),\"\")","v":32000}]
[null,null,"税金と",null,{"$f":"IFERROR(INDEX(Employees[税金と控除],Stub),\"\")","v":13176.000000000002},null,"その他の控除",null,{"$f":"IFERROR(INDEX(Employees[その他の\n控除],Stub),\"\")","v":0},null,"税金および控除の合計 ",null,{"$f":"IFERROR(INDEX(Employees[税金と控除],Stub)  +  INDEX(Employees[その他の\n控除],Stub),\"\")","v":13176.000000000002}]
[null,null,"一般控除の合計  "]
[null,null,null,null,null,null,null,null,null,null,"税引き後支払額",null,{"$f":"IFERROR(INDEX(Employees[税引き後支払額],Stub),\"\")","v":18824}]
[]
[]
[null,null,{"$f":"CompanyName","v":"ヒロコーポレーション"}]
[null,null,"期間",{"$f":"PeriodEnding","v":41372},null,null,"氏名",{"$f":"IFERROR(INDEX(Employees[従業員氏名],Stub),\"\")","v":"若本 喜一"},null,null,"従業員 ID",{"$f":"IFERROR(INDEX(Employees[ID],Stub),\"\")","v":1003}]
[null,null,"税務上の身分",null,{"$f":"IFERROR(INDEX(Employees[税務上の身分],Stub),\"\")","v":1},null,"扶養家族",null,{"$f":"IFERROR(INDEX(Employees[扶養\n家族],Stub),\"\")","v":3},null,"就業時間",null,{"$f":"IFERROR(INDEX(Employees[正規の勤務時間],Stub),\"\")","v":35}]
[null,null,"時給",null,{"$f":"IFERROR(INDEX(Employees[時給],Stub),\"\")","v":1400},null,"残業時間給",null,{"$f":"IFERROR(INDEX(Employees[残業時間給],Stub),\"\")","v":0},null,"病欠時間",null,{"$f":"IFERROR(INDEX(Employees[病欠時間],Stub),\"\")","v":0}]
[null,null,"雇用保険",null,{"$f":"IFERROR(INDEX(Employees[雇用\n保険],Stub)  *  INDEX(Employees[支払総額],Stub),\"\")","v":3351.6},null,"所得税 ",null,{"$f":"IFERROR(INDEX(Employees[所得税],Stub)  *  INDEX(Employees[支払総額],Stub),\"\")","v":14896.000000000002},null,"休暇時間",null,{"$f":"IFERROR(INDEX(Employees[休暇時間],Stub),\"\")","v":3}]
[null,null,"健康保険 ",null,{"$f":"IFERROR(INDEX(Employees[健康保険],Stub)  *  INDEX(Employees[支払総額],Stub),\"\")","v":771.40000000000009},null,"住民税 ",null,{"$f":"IFERROR(INDEX(Employees[住民税],Stub)  *  INDEX(Employees[支払総額],Stub),\"\")","v":1223.5999999999999},null,"残業時間",null,{"$f":"IFERROR(INDEX(Employees[残業時間],Stub),\"\")","v":0}]
[null,null,"保険料控除",null,{"$f":"IFERROR(INDEX(Employees[保険料控除],Stub),\"\")","v":1800},null,"その他の一般控除",null,{"$f":"IFERROR(INDEX(Employees[その他の一般控除],Stub),\"\")","v":2000},null,"支払総額",null,{"$f":"IFERROR(INDEX(Employees[支払総額],Stub),\"\")","v":53200}]
[null,null,"税金と",null,{"$f":"IFERROR(INDEX(Employees[税金と控除],Stub),\"\")","v":24042.600000000002},null,"その他の控除",null,{"$f":"IFERROR(INDEX(Employees[その他の\n控除],Stub),\"\")","v":0},null,"税金および控除の合計 ",null,{"$f":"IFERROR(INDEX(Employees[税金と控除],Stub)  +  INDEX(Employees[その他の\n控除],Stub),\"\")","v":24042.600000000002}]
[null,null,"一般控除の合計  "]
[null,null,null,null,null,null,null,null,null,null,"税引き後支払額",null,{"$f":"IFERROR(INDEX(Employees[税引き後支払額],Stub),\"\")","v":29157.399999999998}]
[]
[]
[null,null,{"$f":"CompanyName","v":"ヒロコーポレーション"}]
[null,null,"期間",{"$f":"PeriodEnding","v":41372},null,null,"氏名",{"$f":"IFERROR(INDEX(Employees[従業員氏名],Stub),\"\")","v":"古井 広宣"},null,null,"従業員 ID",{"$f":"IFERROR(INDEX(Employees[ID],Stub),\"\")","v":1008}]
[null,null,"税務上の身分",null,{"$f":"IFERROR(INDEX(Employees[税務上の身分],Stub),\"\")","v":1},null,"扶養家族",null,{"$f":"IFERROR(INDEX(Employees[扶養\n家族],Stub),\"\")","v":0},null,"就業時間",null,{"$f":"IFERROR(INDEX(Employees[正規の勤務時間],Stub),\"\")","v":50}]
[null,null,"時給",null,{"$f":"IFERROR(INDEX(Employees[時給],Stub),\"\")","v":2000},null,"残業時間給",null,{"$f":"IFERROR(INDEX(Employees[残業時間給],Stub),\"\")","v":0},null,"病欠時間",null,{"$f":"IFERROR(INDEX(Employees[病欠時間],Stub),\"\")","v":1}]
[null,null,"雇用保険",null,{"$f":"IFERROR(INDEX(Employees[雇用\n保険],Stub)  *  INDEX(Employees[支払総額],Stub),\"\")","v":7056},null,"所得税 ",null,{"$f":"IFERROR(INDEX(Employees[所得税],Stub)  *  INDEX(Employees[支払総額],Stub),\"\")","v":31360.000000000004},null,"休暇時間",null,{"$f":"IFERROR(INDEX(Employees[休暇時間],Stub),\"\")","v":5}]
[null,null,"健康保険 ",null,{"$f":"IFERROR(INDEX(Employees[健康保険],Stub)  *  INDEX(Employees[支払総額],Stub),\"\")","v":1624},null,"住民税 ",null,{"$f":"IFERROR(INDEX(Employees[住民税],Stub)  *  INDEX(Employees[支払総額],Stub),\"\")","v":2576},null,"残業時間",null,{"$f":"IFERROR(INDEX(Employees[残業時間],Stub),\"\")","v":0}]
[null,null,"保険料控除",null,{"$f":"IFERROR(INDEX(Employees[保険料控除],Stub),\"\")","v":1500},null,"その他の一般控除",null,{"$f":"IFERROR(INDEX(Employees[その他の一般控除],Stub),\"\")","v":0},null,"支払総額",null,{"$f":"IFERROR(INDEX(Employees[支払総額],Stub),\"\")","v":112000}]
[null,null,"税金と",null,{"$f":"IFERROR(INDEX(Employees[税金と控除],Stub),\"\")","v":44116.000000000007},null,"その他の控除",null,{"$f":"IFERROR(INDEX(Employees[その他の\n控除],Stub),\"\")","v":0},null,"税金および控除の合計 ",null,{"$f":"IFERROR(INDEX(Employees[税金と控除],Stub)  +  INDEX(Employees[その他の\n控除],Stub),\"\")","v":44116.000000000007}]
[null,null,"一般控除の合計  "]
[null,null,null,null,null,null,null,null,null,null,"税引き後支払額",null,{"$f":"IFERROR(INDEX(Employees[税引き後支払額],Stub),\"\")","v":67884}]